bitfinex-derivatives/quotes_SOLF0:USTF0_20241021
["timestamp","ask_amount","ask_price","bid_price","bid_amount"]
[1729543159270,3.0086,166.25,166.21,3.0091]
[1729543160682,3.0086,166.25,166.22,3.009]
[1729543167087,3.0084,166.26,166.22,3.009]
[1729543168786,3.0083,166.27,166.23,3.0087]
[1729543168990,4.38,166.3,166.19,5.6882]
[1729543169982,3.0081,166.28,166.24,3.0086]
[1729543173289,3.0081,166.28,166.25,3.0085]
[1729543174989,3.0082,166.27,166.25,3.0085]
[1729543175685,3.0079,166.29,166.26,3.0082]
[1729543175887,4.38,166.3,166.19,5.6882]
[1729543176802,3.0081,166.28,166.25,3.0084]
[1729543178106,4.29587057,166.32,166.19,5.6882]
[1729543178290,4.29587057,166.32,166.19,7.19251454]
[1729543178494,4.29587057,166.32,166.2,2.98525377]
[1729543178495,8.67587057,166.32,166.2,2.98525377]
[1729543179002,3.0077,166.3,166.23,3.0088]
[1729543179204,3.0077,166.3,166.24,4.38]
[1729543180901,3.0077,166.3,166.26,3.0082]
[1729543189310,3.0077,166.3,166.25,3.0084]
[1729543189509,3.0077,166.3,166.24,4.38]
[1729543190507,3.0077,166.3,166.26,3.0082]
[1729543197327,3.0077,166.3,166.26,4.51234429]
[1729543197524,3.0077,166.3,166.26,3.0082]
[1729543197728,3.0077,166.3,166.26,4.51234429]
[1729543198026,3.0077,166.3,166.26,3.0082]
[1729543198220,3.0077,166.3,166.26,4.51234429]
[1729543198425,3.0077,166.3,166.26,3.0082]
[1729543200229,3.0078,166.29,166.26,3.0082]
[1729543202631,3.0078,166.29,166.26,4.51232756]
[1729543202833,3.0078,166.29,166.26,3.0082]
[1729543203034,3.0078,166.29,166.26,4.51232756]
[1729543203332,3.0078,166.29,166.26,3.0082]
[1729543203529,3.0078,166.29,166.26,4.51232756]
[1729543203730,3.0078,166.29,166.26,3.0082]
[1729543204039,3.0078,166.29,166.26,4.51232756]
[1729543204232,3.0078,166.29,166.26,3.0082]
[1729543204426,3.0078,166.29,166.26,4.51232756]
[1729543204630,3.0078,166.29,166.26,3.0082]
[1729543204835,3.0078,166.29,166.26,4.51232756]
[1729543205135,3.0078,166.29,166.26,3.0082]
[1729543205337,3.0078,166.29,166.26,4.51232756]
[1729543205627,3.0078,166.29,166.26,3.0082]
[1729543205832,3.0078,166.29,166.26,4.51232029]
[1729543206033,3.0078,166.29,166.26,3.0082]
[1729543206333,3.0078,166.29,166.26,4.51232029]
[1729543206531,3.0078,166.29,166.26,3.0082]
[1729543206733,3.0078,166.29,166.26,4.51232029]
[1729543206934,3.0078,166.29,166.26,3.0082]
[1729543207137,3.0078,166.29,166.26,4.51232029]
[1729543207332,3.0078,166.29,166.26,3.0082]
[1729543207537,3.0078,166.29,166.26,4.51232029]
[1729543207840,3.0078,166.29,166.26,3.0082]
[1729543210336,3.0078,166.29,166.27,1.50413496]
[1729543210635,3.0078,166.29,166.26,3.0082]
[1729543210636,3.0078,166.29,166.26,4.51226937]
[1729543210840,3.0078,166.29,166.26,3.0082]
[1729543211036,8.67587057,166.32,166.26,1.50406937]
[1729543211243,3.0082,166.27,166.25,1.50406937]
[1729543211442,3.0082,166.27,166.24,7.3887]
[1729543211643,3.008,166.28,166.25,1.50420327]
[1729543211832,3.008,166.28,166.24,7.3887]
[1729543212039,3.008,166.28,166.25,1.50420327]
[1729543212342,3.008,166.28,166.25,3.0085]
[1729543212941,3.008,166.28,166.25,4.51270327]
[1729543213535,3.008,166.28,166.26,1.50419083]
[1729543213737,8.67587057,166.32,166.25,1.50420327]
[1729543214039,2.6111,166.34,166.26,3.00837849]
[1729543214348,3.0069,166.34,166.3,3.0075]
[1729543214850,4.38,166.35,166.3,3.0075]
[1729543215439,2.5673,166.39,166.3,3.0075]
[1729543215637,4.36,166.38,166.3,4.51137543]
[1729543215941,4.36,166.38,166.3,3.0075]
[1729543216139,4.36,166.38,166.3,4.51136815]
[1729543216333,4.36,166.38,166.28,4.38]
[1729543216544,3.0069,166.34,166.31,3.0074]
[1729543223447,2.5673,166.39,166.32,4.36]
[1729543223640,2.5673,166.39,166.35,3.0066]
[1729543223840,1.3096,166.39,166.35,3.0066]
[1729543224145,3.0057,166.41,166.37,3.0062]
[1729543224338,5.6231,166.44,166.36,4.36]
[1729543225045,3.0055,166.42,166.39,3.006]
[1729543226338,3.0054,166.43,166.39,3.006]
[1729543226542,1.2631,166.44,166.36,4.36]
[1729543226543,1.2631,166.44,166.4,3.0058]
[1729543226945,4.2683,166.44,166.4,3.0058]
[1729543227953,3.0052,166.44,166.4,3.0058]
[1729543229150,7.365,166.45,166.41,3.0054]
[1729543229349,7.365,166.45,166.36,4.36]
[1729543229350,4.36,166.45,166.36,4.36]
[1729543229554,5.58769251,166.46,166.36,4.36]
[1729543229851,3.005,166.45,166.41,3.0055]
[1729543230248,5.58769251,166.46,166.36,4.36]
[1729543230446,5.58769251,166.46,166.37,1.3368]
[1729543230641,3.0049,166.45,166.41,3.0055]
[1729543231256,5.58769251,166.46,166.37,1.3368]
[1729543232547,3.0055,166.42,166.37,1.3368]
[1729543232953,5.58769251,166.46,166.36,4.36]
[1729543233258,3.0059,166.4,166.35,4.36]
[1729543233752,4.36,166.43,166.33,1.2562]
[1729543233958,4.36,166.43,166.34,4.36]
[1729543234551,4.36,166.43,166.35,3.0065]
[1729543235056,3.0057,166.41,166.35,3.0065]
[1729543235354,4.36,166.43,166.35,3.0065]
[1729543236556,4.36,166.43,166.34,4.36]
[1729543236755,3.006,166.39,166.36,3.0065]
[1729543237257,4.36,166.43,166.36,3.0065]
[1729543237459,3.0059,166.4,166.36,3.0065]
[1729543238660,3.0059,166.4,166.34,4.36]
[1729543239258,3.0059,166.4,166.36,3.0064]
[1729543243654,4.36,166.43,166.34,4.36]
[1729543243856,3.0061,166.39,166.35,3.0067]
[1729543244057,4.36,166.43,166.33,4.36]
[1729543244255,3.0063,166.38,166.34,3.0068]
[1729543245462,4.36,166.43,166.3,163.27747097]
[1729543245663,4.36,166.43,166.31,4.36]
[1729543245852,4.36,166.43,166.3,163.27747097]
[1729543246050,4.36,166.43,166.31,4.36]
[1729543246258,3.0059,166.4,166.33,3.0071]
[1729543246463,6.9667,166.39,166.33,3.0071]
[1729543246657,6.9667,166.39,166.31,4.36]
[1729543247476,3.0065,166.37,166.33,3.007]
[1729543248263,3.0065,166.37,166.34,3.0068]
[1729543250166,3.0065,166.37,166.33,3.007]
[1729543250365,3.0066,166.36,166.33,3.007]
[1729543251362,3.0071,166.34,166.3,166.28497097]
[1729543251562,7.44129198,166.37,166.3,163.27747097]
[1729543251861,4.36,166.37,166.3,163.27747097]
[1729543252062,3.0068,166.35,166.31,3.0073]
[1729543258171,3.0068,166.35,166.3,163.27747097]
[1729543258367,3.0068,166.35,166.32,3.0072]
[1729543262174,6.06804953,166.36,166.33,3.0069]
[1729543262483,2.99163851,166.37,166.3,163.27747097]
[1729543262775,5.99813851,166.37,166.34,3.0068]
[1729543263267,2.99163851,166.37,166.34,3.0068]
[1729543263465,3.0065,166.36,166.34,3.0068]
[1729543264568,3.0064,166.37,166.34,3.0068]
[1729543265975,6.9667,166.39,166.3,163.27747097]
[1729543266768,3.0064,166.37,166.34,3.0068]
[1729543267164,3.0064,166.37,166.3,163.27747097]
[1729543267464,3.0064,166.37,166.35,3.0067]
[1729543267973,3.0068,166.35,166.33,3.007]
[1729543268175,6.9667,166.39,166.33,3.007]
[1729543268968,6.9667,166.39,166.3,163.27747097]
[1729543269171,3.0065,166.37,166.34,3.0068]
[1729543269379,6.0193069,166.37,166.34,3.0068]
[1729543270884,3.0066,166.36,166.34,3.0068]
[1729543271684,3.0064,166.37,166.32,3.0071]
[1729543271883,3.0064,166.37,166.3,163.27747097]
[1729543274886,3.0064,166.37,166.33,3.0069]
[1729543275985,33.10685496,166.62,166.3,163.27747097]
[1729543275986,18.05,166.52,166.3,163.27747097]
[1729543276190,1.3363,166.44,166.32,4.36]
[1729543276391,4.36,166.43,166.32,4.36]
[1729543276782,3.006,166.4,166.37,3.0062]
[1729543277174,4.36,166.43,166.32,4.36]
[1729543277377,3.0057,166.41,166.38,3.0061]
[1729543278085,3.0056,166.42,166.35,3.0067]
[1729543278286,3.0056,166.42,166.32,8.57394776]
[1729543279990,3.0056,166.42,166.39,3.006]
[1729543280185,3.0053,166.43,166.39,3.006]
[1729543282089,1.3279,166.49,166.36,4.36]
[1729543282288,3.0052,166.44,166.36,4.36]
[1729543283686,3.0052,166.44,166.4,3.0057]
[1729543284094,3.0053,166.43,166.4,3.0057]
[1729543292594,3.0053,166.43,166.36,4.36]
[1729543292793,3.0051,166.44,166.36,4.36]
[1729543293092,3.0051,166.44,166.37,1.3139]
[1729543293291,3.005,166.45,166.41,3.0055]
[1729543293688,4.36,166.47,166.41,3.0055]
[1729543294597,3.0051,166.44,166.41,3.0055]
[1729543297600,3.0054,166.43,166.39,3.0059]
[1729543298303,3.0054,166.43,166.37,1.3139]
[1729543298510,3.0054,166.43,166.4,3.0058]
[1729543306209,4.36,166.47,166.34,1.3369]
[1729543306406,4.36,166.47,166.35,4.36]
[1729543307518,3.0059,166.4,166.37,3.0062]
[1729543309207,3.0059,166.4,166.35,4.36]
[1729543309406,3.0059,166.4,166.36,3.0065]
[1729543311613,2.95160637,166.42,166.36,3.0065]
[1729543311814,3.006,166.39,166.36,3.0065]
[1729543319609,3.0059,166.4,166.37,3.0063]
[1729543324218,3.0058,166.41,166.38,3.0061]
[1729543324615,4.22030637,166.42,166.34,1.3369]
[1729543325919,3.0059,166.4,166.37,3.0063]
[1729543331430,1.2687,166.42,166.34,1.3369]
[1729543331628,4.2742,166.42,166.39,3.0059]
[1729543331922,4.2742,166.42,166.34,1.3369]
[1729543332729,4.2742,166.42,166.36,3.0065]
[1729543333024,1.2687,166.42,166.34,1.3369]
[1729543333229,3.0057,166.41,166.34,1.3369]
[1729543334118,4.2742,166.42,166.38,3.006]
[1729543336132,4.2742,166.42,166.39,3.0059]
[1729543340638,3.0055,166.42,166.4,3.0058]
[1729543341032,4.36,166.44,166.35,1.50308955]
[1729543341336,4.36,166.44,166.38,3.0061]
[1729543342039,3.0054,166.43,166.38,3.0061]
[1729543342337,2.96831227,166.42,166.38,3.0061]
[1729543342528,3.0058,166.41,166.38,3.0061]
[1729543342932,2.99416551,166.42,166.38,3.0061]
[1729543343133,4.36,166.44,166.38,3.0061]
[1729543343530,4.36,166.44,166.35,1.50313425]
[1729543343737,4.36,166.44,166.35,3.0067]
[1729543343738,2.4978,166.43,166.35,3.0067]
[1729543344136,1.2562,166.42,166.35,3.0067]
[1729543344334,4.27321256,166.42,166.35,3.0067]
[1729543345549,3.0063,166.38,166.35,3.0067]
[1729543347143,3.0063,166.38,166.26,6.0167]
[1729543347144,4.36,166.39,166.29,1.50340902]
[1729543347443,4.36,166.39,166.3,5.86340902]
[1729543347646,4.36,166.39,166.28,5.86340902]
[1729543347835,3.0069,166.35,166.32,3.0072]
[1729543349346,3.0069,166.34,166.31,3.0073]
[1729543352840,3.0066,166.36,166.33,3.007]
[1729543355553,3.0065,166.37,166.31,3.0074]
[1729543355856,4.27321256,166.42,166.28,5.86365169]
[1729543356063,4.34,166.41,166.29,1.50365169]
[1729543356550,4.34,166.41,166.3,3.9247]
[1729543356755,4.27321256,166.42,166.3,5.42799864]
[1729543356953,8.61321256,166.42,166.3,5.42799864]
[1729543357157,3.006,166.4,166.36,3.0064]
[1729543358547,3.006,166.39,166.36,3.0064]
[1729543358749,8.61321256,166.42,166.36,3.0064]
[1729543359352,3.0059,166.4,166.36,3.0064]
[1729543360459,3.006,166.39,166.36,3.0064]
[1729543363466,8.61321256,166.42,166.33,4.34]
[1729543364860,3.0059,166.4,166.37,3.0063]
[1729543366974,3.0059,166.4,166.36,3.0064]
[1729543367567,3.0059,166.4,166.33,4.34]
[1729543367767,3.0059,166.4,166.37,3.0062]
[1729543368271,3.0058,166.41,166.33,5.84322594]
[1729543368476,3.0058,166.41,166.38,3.0061]
[1729543369069,98.33724153,166.47,166.34,1.50322594]
[1729543369274,3.0055,166.42,166.38,3.006]
[1729543369476,4.34,166.44,166.38,3.006]
[1729543369776,1.355,166.43,166.38,3.006]
[1729543369978,3.0058,166.41,166.38,3.006]
[1729543370781,6.02600026,166.41,166.38,3.006]
[1729543372079,3.0063,166.38,166.35,3.0066]
[1729543372277,4.34,166.4,166.35,3.0066]
[1729543373082,3.0061,166.39,166.35,3.0066]
[1729543373383,4.34,166.4,166.35,3.0066]
[1729543374186,3.0063,166.38,166.36,3.0065]
[1729543374583,3.02020026,166.41,166.31,1.50321059]
[1729543374781,3.02020026,166.41,166.3,8.2647]
[1729543374782,4.34,166.42,166.3,8.2647]
[1729543375385,7.41912513,166.42,166.31,1.50321385]
[1729543375589,7.41912513,166.42,166.32,1.50321385]
[1729543375886,7.41912513,166.42,166.33,1.50321385]
[1729543376086,7.41912513,166.42,166.34,5.84321385]
[1729543376287,7.41912513,166.42,166.35,1.50321385]
[1729543376889,3.0057,166.41,166.37,3.0063]
[1729543378188,3.0057,166.41,166.35,1.50321385]
[1729543379081,3.0057,166.41,166.37,3.0062]
[1729543379883,3.0057,166.41,166.35,1.50321385]
[1729543380084,3.0055,166.42,166.38,3.0061]
[1729543380284,4.34,166.43,166.38,3.0061]
[1729543380581,3.0056,166.41,166.38,3.0061]
[1729543385489,4.34,166.43,166.35,1.50311174]
[1729543385689,4.34,166.43,166.36,1.50311174]
[1729543385884,4.34,166.43,166.35,1.50311174]
[1729543386091,7.3454,166.43,166.39,3.0059]
[1729543386392,7.3454,166.43,166.35,1.50311174]
[1729543386585,7.3454,166.43,166.39,3.0059]
[1729543389197,7.3454,166.43,166.4,3.0058]
[1729543389699,3.0054,166.43,166.4,3.0058]
[1729543391789,6.9084,166.46,166.35,1.50307511]
[1729543391994,3.0053,166.43,166.35,1.50307511]
[1729543392692,3.0053,166.43,166.4,3.0057]
[1729543393396,6.9084,166.46,166.35,2.77357511]
[1729543393588,6.9084,166.46,166.42,3.0053]
[1729543393589,3.005,166.45,166.42,3.0053]
[1729543394492,3.005,166.45,166.39,4.34]
[1729543394896,3.005,166.45,166.4,1.50286319]
[1729543395089,3.005,166.45,166.42,3.0053]
[1729543396498,1.2786,166.46,166.4,1.50286319]
[1729543396700,4.2834,166.46,166.43,3.0052]
[1729543397500,1.2786,166.46,166.43,3.0052]
[1729543397696,3.0049,166.45,166.43,3.0052]
[1729543400800,4.2834,166.46,166.4,1.50278739]
[1729543401003,4.2834,166.46,166.43,3.0051]
[1729543401302,1.2786,166.46,166.43,3.0051]
[1729543402401,1.2786,166.46,166.4,1.50278739]
[1729543402602,3.0052,166.44,166.41,3.0056]
[1729543404105,1.2786,166.46,166.38,1.50282718]
[1729543404396,3.0056,166.42,166.39,3.006]
[1729543404604,1.2786,166.46,166.37,1.50282718]
[1729543404794,3.0058,166.4,166.37,3.0063]
[1729543404993,1.353,166.45,166.36,5.84282718]
[1729543404994,4.34,166.44,166.36,5.84282718]
[1729543405196,4.34,166.44,166.37,3.0063]
[1729543405905,3.0057,166.41,166.38,3.0061]
[1729543423612,3.00288388,166.41,166.33,1.50315383]
[1729543423820,5.6658,166.44,166.34,7.34631163]
[1729543424117,5.6658,166.44,166.35,1.5031578]
[1729543424312,3.0063,166.38,166.36,1.5031578]
[1729543424516,3.0063,166.38,166.35,3.0067]
[1729543425717,3.0063,166.38,166.36,1.50332692]
[1729543425920,3.0063,166.38,166.35,3.0067]
[1729543442332,3.0059,166.4,166.33,1.50330835]
[1729543442521,3.0059,166.4,166.34,1.50328035]
[1729543442833,3.0059,166.4,166.35,1.50328035]
[1729543443021,3.0059,166.4,166.36,3.0064]
[1729543444826,3.0059,166.4,166.33,1.50330835]
[1729543445018,3.0059,166.4,166.37,3.0063]
[1729543445629,3.006,166.39,166.37,3.0063]
[1729543450525,3.0056,166.42,166.39,3.0059]
[1729543450832,4.34,166.43,166.39,3.0059]
[1729543451026,1.3258,166.44,166.36,4.34]
[1729543451326,5.6186,166.46,166.37,1.50314277]
[1729543451533,5.6186,166.46,166.38,1.50314277]
[1729543451733,3.0053,166.44,166.4,3.0057]
[1729543456530,3.0057,166.41,166.38,3.0062]
[1729543456728,3.0057,166.41,166.36,4.34]
[1729543456930,3.0057,166.41,166.37,1.50312487]
[1729543457129,3.0057,166.41,166.37,3.0062]
[1729543457542,3.0057,166.41,166.37,4.50937595]
[1729543458434,3.0057,166.41,166.37,1.50317595]
[1729543458633,3.0057,166.41,166.38,3.0061]
[1729543478351,3.0061,166.39,166.37,1.50310304]
[1729543478545,5.639,166.44,166.38,1.50310297]
[1729543478851,5.639,166.44,166.37,1.50310304]
[1729543479052,3.0057,166.41,166.38,4.50930321]
[1729543479252,3.0057,166.41,166.38,3.0062]
[1729543479951,5.639,166.44,166.37,1.503118]
[1729543480253,5.639,166.44,166.38,1.503118]
[1729543480445,5.639,166.44,166.37,1.503118]
[1729543480754,5.639,166.44,166.38,1.50311791]
[1729543481051,3.0058,166.41,166.38,3.0062]
[1729543482754,3.0058,166.41,166.34,1.2979]
[1729543482755,2.96963689,166.42,166.26,64.92]
[1729543482951,5.639,166.44,166.34,1.50339798]
[1729543483248,5.639,166.44,166.35,1.50339798]
[1729543483554,3.0066,166.36,166.32,2.9792952]
[1729543483857,3.00570901,166.37,166.29,4.34]
[1729543484048,3.0066,166.36,166.33,3.0071]
[1729543484245,2.98887536,166.37,166.29,4.34]
[1729543484445,2.98887536,166.37,166.3,1.5035718]
[1729543484645,3.0068,166.35,166.31,1.5035718]
[1729543484841,3.0068,166.35,166.32,1.5035718]
[1729543485054,3.0068,166.35,166.33,1.5035718]
[1729543485249,3.0068,166.35,166.29,4.34]
[1729543485454,3.0066,166.36,166.32,3.0071]
[1729543487856,3.0066,166.36,166.33,3.0071]
[1729543503870,3.0069,166.34,166.32,3.0072]
[1729543507777,4.34,166.38,166.28,1.50350322]
[1729543507979,6.872,166.38,166.26,4.34]
[1729543509482,3.0075,166.31,166.28,3.0079]
[1729543511876,4.34,166.34,166.26,4.34]
[1729543512072,4.34,166.34,166.27,3.008]
[1729543513789,3.0075,166.31,166.28,3.008]
[1729543514480,4.34,166.34,166.26,4.34]
[1729543514679,4.34,166.34,166.27,3.0081]
[1729543515284,3.0076,166.31,166.27,3.0081]
[1729543515480,3.0076,166.31,166.28,3.0079]
[1729543517085,4.34,166.34,166.28,3.0079]
[1729543517280,3.0074,166.32,166.28,3.0079]
[1729543517889,3.0074,166.32,166.26,4.34]
[1729543517890,7.347,166.34,166.3,3.0075]
[1729543518087,4.34,166.34,166.26,4.34]
[1729543518793,4.34,166.34,166.31,3.0073]
[1729543519592,4.34,166.34,166.26,4.34]
[1729543520195,4.34,166.34,166.28,3.0076]
[1729543520390,4.34,166.34,166.26,4.34]
[1729543520780,100.91724383,166.38,166.26,4.34]
[1729543520994,4.34,166.37,166.26,4.34]
[1729543521294,105.25724383,166.38,166.35,3.0063]
[1729543521497,108.26324383,166.38,166.35,3.0063]
[1729543527086,7.3459,166.38,166.3,4.34]
[1729543527293,3.0059,166.38,166.3,4.34]
[1729543527687,3.0059,166.38,166.35,3.0063]
[1729543527890,3.0059,166.38,166.3,4.34]
[1729543528496,3.0059,166.38,166.35,3.0062]
[1729543530789,3.0055,166.41,166.38,3.0059]
[1729543530987,3.0055,166.41,166.3,4.34]
[1729543530988,4.34,166.43,166.3,7.16459934]
[1729543531191,4.34,166.43,166.31,1.50349934]
[1729543531494,2.6485,166.44,166.42,3.0051]
[1729543531495,4.3335,166.44,166.42,3.0051]
[1729543531703,1.3286,166.44,166.36,4.34]
[1729543531886,1.3135,166.45,166.36,4.34]
[1729543532083,1.3135,166.45,166.44,3.0048]
[1729543533984,1.3135,166.45,166.43,3.0049]
[1729543559811,4.3181,166.45,166.43,3.0049]
[1729543563009,1.2374,166.5,166.4,4.32]
[1729543563215,4.32,166.5,166.4,4.32]
[1729543563614,3.0042,166.48,166.45,3.0044]
[1729543564308,7.3238,166.5,166.47,3.0041]
[1729543564907,3.0038,166.5,166.47,3.0041]
[1729543566617,3.0038,166.5,166.44,4.32]
[1729543566912,3.0038,166.5,166.48,3.004]
[1729543567417,3.0035,166.51,166.48,3.004]
[1729543570618,3.0037,166.5,166.48,3.004]
[1729543573419,3.0037,166.5,166.47,3.0041]
[1729543577721,64.88,166.62,166.44,4.32]
[1729543577918,4.32,166.59,166.45,3.791]
[1729543578117,2.4645,166.61,166.45,3.791]
[1729543578428,3.0039,166.5,166.47,3.0041]
[1729543579818,3.0039,166.5,166.46,4.32]
[1729543580016,3.0039,166.5,166.48,3.004]
[1729543580221,3.0036,166.51,166.48,3.004]
[1729543581820,3.0037,166.5,166.48,3.004]
[1729543586726,3.0039,166.49,166.47,3.0042]
[1729543586923,3.0039,166.49,166.45,1.2283]
[1729543587228,3.0039,166.49,166.46,3.0043]
[1729543589623,3.0039,166.49,166.45,1.2283]
[1729543589827,3.0039,166.49,166.47,3.0042]
[1729543595145,3.0036,166.51,166.48,3.0041]
[1729543595841,3.0036,166.51,166.49,3.0039]
[1729543601739,3.0036,166.51,166.45,1.2283]
[1729543601944,3.0036,166.51,166.48,3.004]
[1729543612345,3.003,166.55,166.51,3.0035]
[1729543612549,4.32,166.55,166.51,3.0035]
[1729543612746,4.32,166.55,166.45,2.5265]
[1729543612747,4.32,166.57,166.48,4.32]
[1729543612943,3.0029,166.55,166.52,3.0032]
[1729543614450,4.32,166.57,166.52,3.0032]
[1729543614650,3.0036,166.51,166.48,3.0039]
[1729543615652,3.0036,166.51,166.49,3.0038]
[1729543619754,3.0036,166.51,166.48,3.004]
[1729543620150,1.2984,166.56,166.47,1.5022985]
[1729543620358,1.2984,166.56,166.49,3.0038]
[1729543620756,3.0035,166.52,166.49,3.0038]
[1729543623869,3.0035,166.52,166.5,3.0037]
[1729543628466,1.2984,166.56,166.51,3.0035]
[1729543629174,3.0031,166.54,166.51,3.0035]
[1729543631471,1.2984,166.56,166.49,1.50210536]
[1729543631773,4.32,166.57,166.52,3.0032]
[1729543631964,3.0029,166.55,166.52,3.0032]
[1729543632463,3.0027,166.56,166.54,3.003]
[1729543632769,1.2675,166.58,166.54,3.003]
[1729543632770,5.5662,166.59,166.54,3.003]
[1729543633368,3.0026,166.57,166.54,3.003]
[1729543633864,3.0026,166.57,166.5,1.278]
[1729543633865,1.2843,166.62,166.52,1.50180492]
[1729543634065,3.0021,166.59,166.53,3.00346539]
[1729543634367,3.0021,166.59,166.54,1.50166047]
[1729543634571,3.0021,166.59,166.53,4.32]
[1729543634772,3.0023,166.58,166.54,1.50166286]
[1729543634973,3.0023,166.58,166.53,4.32]
[1729543635273,3.0023,166.58,166.54,1.50165934]
[1729543635569,3.0023,166.58,166.53,4.32]
[1729543635570,3.0023,166.58,166.55,1.50165934]
[1729543635774,3.0023,166.58,166.54,1.50165934]
[1729543635976,3.0023,166.58,166.55,1.50165934]
[1729543636273,3.0023,166.58,166.54,1.50165934]
[1729543636976,3.0023,166.58,166.56,3.0026]
[1729543639085,3.0021,166.59,166.55,3.0027]
[1729543639281,3.0021,166.59,166.53,4.32]
[1729543639878,3.0021,166.59,166.56,3.0025]
[1729543642294,3.002,166.6,166.57,3.0024]
[1729543642891,3.0018,166.61,166.58,3.0022]
[1729543643092,8.56225024,166.63,166.53,4.32]
[1729543643396,5.5497,166.63,166.53,4.32]
[1729543643786,3.0018,166.61,166.58,3.0021]
[1729543651596,3.0018,166.61,166.53,4.32]
[1729543651909,3.0016,166.62,166.53,4.32]
[1729543652605,3.0016,166.62,166.59,3.0019]
[1729543652807,3.0014,166.63,166.53,4.32]
[1729543653306,8.55819684,166.65,166.61,3.0016]
[1729543653513,3.0013,166.64,166.61,3.0016]
[1729543653803,8.55819684,166.65,166.61,3.0016]
[1729543654003,3.0012,166.64,166.58,4.3]
[1729543654906,4.2628,166.65,166.58,4.3]
[1729543655100,1.2375,166.68,166.58,4.3]
[1729543655300,1.2375,166.68,166.59,1.3138]
[1729543655497,3.0007,166.67,166.64,3.0011]
[1729543655698,7.36754663,166.69,166.59,1.3138]
[1729543655903,4.3,166.69,166.6,1.2236]
[1729543656407,7.3004,166.69,166.66,3.0008]
[1729543656903,7.2498257,166.69,166.63,4.3]
[1729543657210,3.0005,166.68,166.65,3.0009]
[1729543658107,1.2968,166.72,166.63,4.3]
[1729543658414,4.3,166.74,166.63,4.3]
[1729543659713,3.0001,166.71,166.67,3.0005]
[1729543659908,4.3,166.74,166.67,3.0005]
[1729543660213,3.0002,166.7,166.67,3.0005]
[1729543660411,4.3,166.74,166.68,3.0004]
[1729543660599,1.2434,166.75,166.63,4.3]
[1729543660799,4.22491329,166.78,166.63,4.3]
[1729543661000,18.04,166.9,166.64,65.92267302]
[1729543661202,8.9881,166.93,166.64,65.92267302]
[1729543661203,2.4894,166.85,166.65,8.40415719]
[1729543661413,22.34,166.84,166.66,5.5875]
[1729543661611,23.34,166.84,166.69,3.0002]
[1729543662210,2.9984,166.8,166.69,3.0002]
[1729543662405,5.5207,166.79,166.66,5.5875]
[1729543662608,2.5075,166.78,166.66,1.2875]
[1729543662912,2.5075,166.78,166.66,5.5875]
[1729543663419,2.5075,166.78,166.67,3.0006]
[1729543664116,3.0002,166.7,166.67,3.0006]
[1729543664817,2.99484012,166.73,166.68,3.0003]
[1729543665008,4.3,166.74,166.68,3.0003]
[1729543665315,4.3,166.74,166.67,3.0006]
[1729543665528,7.22734147,166.74,166.66,1.2875]
[1729543666309,7.22734147,166.74,166.66,4.2882]
[1729543666310,3.0002,166.7,166.66,4.2882]
[1729543667112,3.0,166.71,166.68,3.0004]
[1729543683120,3.0,166.71,166.65,4.3]
[1729543683121,2.92734147,166.74,166.6,1.2236]
[1729543683325,4.3,166.75,166.66,3.0008]